[Event "Amsterdam Chess Open 2024"]
[Site "Amsterdam"]
[Date "2024.11.02"]
[Round "4.21"]
[White "Stiehler, Oskar"]
[Black "Shakya, Amrit"]
[Result "0-1"]
[ECO "B22"]
[WhiteElo "1784"]
[BlackElo "1756"]
[Annotator "NA RC"]
[PlyCount "88"]
[EventDate "2024.10.31"]
[EventType "swiss"]
[EventCountry "NED"]
[SourceTitle "playchess.com"]
[Source "ChessBase"]
[SourceQuality "1"]
[TimeControl "5400+30"]

1. e4 {[%emt 0:00:03]} c5 {[%emt 0:00:46]} 2. c3 {[%emt 0:00:36]} Nf6 {[%emt 0:00:15]} 3. e5 {[%emt 0:00:12]} Nd5 {[%emt 0:00:02]} 4. d4 {[%emt 0:00:12]} d6 {[%emt 0:00:12]} 5. Nf3 {[%emt 0:08:30]} e6 {[%emt 0:08:27]} 6. c4 {[%emt 0:04:31]} Nb4 {[%emt 0:01:27]} 7. dxc5 {[%emt 0:06:56]} dxe5 {[%emt 0:07:40]} 8. Qxd8+ {[%emt 0:03:03]} Kxd8 {[%emt 0:00:02]} 9. Nxe5 {[%emt 0:01:11]} Ke8 {[%emt 0:01:19]} 10. Na3 {[%emt 0:03:41]} Bxc5 {[%emt 0:01:02]} 11. Nd3 {[%emt 0:02:14]} Nxd3+ {[%emt 0:03:52]} 12. Bxd3 {[%emt 0:00:12]} Bxa3 {[%emt 0:05:59]} 13. bxa3 {[%emt 0:00:10]} Nc6 {[%emt 0:01:02]} 14. Bb2 {[%emt 0:02:08]} f6 {[%emt 0:00:11]} 15. O-O {[%emt 0:00:54]} e5 {[%emt 0:02:36]} 16. f4 {[%emt 0:05:34]} exf4 {[%emt 0:00:03]} 17. Rxf4 {[%emt 0:01:33]} Kf7 {[%emt 0:00:45]} 18. Rf2 {[%emt 0:05:23]} Be6 {[%emt 0:01:18]} 19. Bc3 {[%emt 0:06:03]} Rac8 {[%emt 0:01:04]} 20. Rb1 {[%emt 0:06:53]} b6 {[%emt 0:13:07]} 21. a4 {[%emt 0:04:38]} Rhd8 {[%emt 0:01:41]} 22. Bxh7 {[%emt 0:05:37]} Bxc4 {[%emt 0:00:19]} 23. a5 {[%emt 0:03:11]} bxa5 {[%emt 0:02:12]} 24. Rb7+ {[%emt 0:01:23]} Ne7 {[%emt 0:00:26]} 25. h3 {[%emt 0:01:33]} Bd5 {[%emt 0:02:50]} 26. Rxe7+ {[%emt 0:05:06]} Kxe7 {[%emt 0:00:14]} 27. Bxa5 {[%emt 0:00:17]} Rc1+ {[%emt 0:07:02]} 28. Kh2 {[%emt 0:00:54]} Rd7 {[%emt 0:00:14]} 29. Bg6 {[%emt 0:01:59]} Rb7 {[%emt 0:04:23]} 30. a3 {[%emt 0:02:08]} Rb5 {[%emt 0:15:43]} 31. Re2+ {[%emt 0:04:02]} Be6 {[%emt 0:00:11]} 32. Bb4+ {[%emt 0:01:05]} Kd7 {[%emt 0:00:01]} 33. Bf8 {[%emt 0:02:56]} Rg5 {[%emt 0:05:30]} 34. Rd2+ {[%emt 0:02:40]} Rd5 {[%emt 0:00:42]} 35. Rxd5+ {[%emt 0:02:45]} Bxd5 {[%emt 0:00:09]} 36. Bxg7 {[%emt 0:01:51]} Ke7 {[%emt 0:01:11]} 37. h4 {[%emt 0:01:35]} Ra1 {[%emt 0:05:15]} 38. h5 {[%emt 0:00:12]} Bf7 {[%emt 0:00:09]} 39. Bxf7 {[%emt 0:05:03]} Kxf7 {[%emt 0:00:09]} 40. h6 {[%emt 0:00:52]} Rxa3 {[%emt 0:00:40]} 41. g4 {[%emt 0:00:14]} a5 {[%emt 0:00:36]} 42. g5 {[%emt 0:00:57]} fxg5 {[%emt 0:00:28]} 43. Bb2 {[%emt 0:00:31]} Ra2 {[%emt 0:00:02]} 44. h7 {[%emt 0:00:03]} Rxb2+ {[%emt 0:00:02]} 0-1

[Event "Amsterdam Chess Open 2024"]
[Site "Amsterdam"]
[Date "2024.11.02"]
[Round "4.22"]
[White "Lars Nobbe"]
[Black "Erisen, Sinan"]
[Result "0-1"]
[ECO "B06"]
[WhiteElo "1772"]
[BlackElo "1745"]
[Annotator "NA RC"]
[PlyCount "61"]
[EventDate "2024.10.31"]
[EventType "swiss"]
[EventCountry "NED"]
[SourceTitle "playchess.com"]
[Source "ChessBase"]
[SourceQuality "1"]
[TimeControl "5400+30"]

1. e4 {[%emt 0:00:01]} g6 {[%emt 0:00:08]} 2. d4 {[%emt 0:00:12]} Bg7 {[%emt 0:00:09]} 3. Nf3 {[%emt 0:01:11]} d6 {[%emt 0:00:11]} 4. Nc3 {[%emt 0:01:04]} a6 {[%emt 0:00:13]} 5. Bc4 {[%emt 0:03:22]} b5 {[%emt 0:00:11]} 6. Bxf7+ {[%emt 0:17:27]} Kxf7 {[%emt 0:00:07]} 7. Ng5+ {[%emt 0:00:17]} Ke8 {[%emt 0:00:08]} 8. Qf3 {[%emt 0:00:34]} Nh6 {[%emt 0:06:37]} 9. e5 {[%emt 0:04:25]} c6 {[%emt 0:04:30]} 10. e6 {[%emt 0:13:44]} Rf8 {[%emt 0:01:05]} 11. Qh3 {[%emt 0:05:33]} Qb6 {[%emt 0:31:14]} 12. Nxh7 {[%emt 0:08:34]} Rf5 {[%emt 0:10:40]} 13. Qg3 {[%emt 0:03:02]} Bxd4 {[%emt 0:10:55]} 14. Qxg6+ {[%emt 0:01:32]} Kd8 {[%emt 0:00:25]} 15. Bxh6 {[%emt 0:04:10]} Bxf2+ {[%emt 0:08:00]} 16. Kd1 {[%emt 0:00:28]} Qd4+ {[%emt 0:00:50]} 17. Kc1 {[%emt 0:02:15]} Be3+ {[%emt 0:02:55]} 18. Kb1 {[%emt 0:03:00]} Bxh6 {[%emt 0:09:45]} 19. Qxf5 {[%emt 0:00:56]} b4 {[%emt 0:03:23]} 20. Rd1 {[%emt 0:02:14]} Qc4 {[%emt 0:00:53]} 21. Qa5+ {[%emt 0:13:12]} Ke8 {[%emt 0:00:28]} 22. Qh5+ {[%emt 0:04:56]} Kd8 {[%emt 0:00:02]} 23. Na4 {[%emt 0:03:06]} Qf4 {[%emt 0:05:57]} 24. Nb6 {[%emt 0:01:23]} Bxe6 {[%emt 0:00:12]} 25. Nxa8 {[%emt 0:02:01]} Bf5 {[%emt 0:00:56]} 26. Qf3 {[%emt 0:03:34]} Qe5 {[%emt 0:01:43]} 27. Qf2 {[%emt 0:01:04]} Be3 {[%emt 0:01:24]} 28. Qe2 {[%emt 0:00:32]} Qc5 {[%emt 0:00:28]} 29. Re1 {[%emt 0:00:22]} Bxh7 {[%emt 0:00:05]} 30. a3 {[%emt 0:00:45]} b3 {[%emt 0:00:49]} 31. Rc1 {[%emt 0:01:04]} 0-1

[Event "Amsterdam Chess Open 2024"]
[Site "Amsterdam"]
[Date "2024.11.02"]
[Round "4.23"]
[White "Alamaki, Jaakko"]
[Black "Schebek, Paul"]
[Result "1/2-1/2"]
[ECO "D61"]
[WhiteElo "1816"]
[BlackElo "1696"]
[Annotator "NA RC"]
[PlyCount "131"]
[EventDate "2024.10.31"]
[EventType "swiss"]
[EventCountry "NED"]
[SourceTitle "playchess.com"]
[Source "ChessBase"]
[SourceQuality "1"]
[TimeControl "5400+30"]

1. d4 {[%emt 0:00:04]} d5 {[%emt 0:00:27]} 2. Nf3 {[%emt 0:00:15]} Nf6 {[%emt 0:00:22]} 3. c4 {[%emt 0:00:11]} c6 {[%emt 0:00:40]} 4. Nc3 {[%emt 0:00:15]} e6 {[%emt 0:01:41]} 5. Bg5 {[%emt 0:01:06]} Be7 {[%emt 0:00:21]} 6. e3 {[%emt 0:00:16]} O-O {[%emt 0:00:21]} 7. Qc2 {[%emt 0:02:25]} Nbd7 {[%emt 0:00:44]} 8. Be2 {[%emt 0:02:13]} b6 {[%emt 0:03:10]} 9. O-O {[%emt 0:03:06]} Bb7 {[%emt 0:02:47]} 10. Rfd1 {[%emt 0:03:53]} Rc8 {[%emt 0:03:27]} 11. a3 {[%emt 0:06:00]} c5 {[%emt 0:02:47]} 12. b3 {[%emt 0:19:25]} a6 {[%emt 0:13:36]} 13. Qb2 {[%emt 0:06:38]} h6 {[%emt 0:07:16]} 14. Bh4 {[%emt 0:00:36]} dxc4 {[%emt 0:01:08]} 15. dxc5 {[%emt 0:09:12]} cxb3 {[%emt 0:07:19]} 16. Qxb3 {[%emt 0:05:37]} Rxc5 {[%emt 0:00:38]} 17. Rab1 {[%emt 0:08:18]} Nd5 {[%emt 0:05:14]} 18. Bxe7 {[%emt 0:03:52]} Qxe7 {[%emt 0:00:24]} 19. Ne4 {[%emt 0:06:55]} Rc7 {[%emt 0:01:46]} 20. Nd4 {[%emt 0:04:03]} Rfc8 {[%emt 0:02:11]} 21. Ra1 {[%emt 0:02:47]} Nc3 {[%emt 0:11:04]} 22. Nxc3 {[%emt 0:00:16]} Rxc3 {[%emt 0:00:07]} 23. Qb4 {[%emt 0:03:52]} Qxb4 {[%emt 0:09:37]} 24. axb4 {[%emt 0:00:06]} Nb8 {[%emt 0:06:19]} 25. h3 {[%emt 0:03:22]} b5 {[%emt 0:00:53]} 26. Bg4 {[%emt 0:00:40]} Kf8 {[%emt 0:01:32]} 27. Be2 {[%emt 0:02:47]} Nc6 {[%emt 0:00:32]} 28. Bf3 {[%emt 0:01:13]} Nxd4 {[%emt 0:08:52]} 29. Bxb7 {[%emt 0:02:26]} Rb8 {[%emt 0:00:22]} 30. Bxa6 {[%emt 0:02:35]} Nc6 {[%emt 0:00:45]} 31. Rdc1 {[%emt 0:00:42]} Rxc1+ {[%emt 0:00:26]} 32. Rxc1 {[%emt 0:00:04]} Nxb4 {[%emt 0:00:20]} 33. Rc8+ {[%emt 0:01:00]} Rxc8 {[%emt 0:00:06]} 34. Bxc8 {[%emt 0:00:05]} Nd5 {[%emt 0:00:15]} 35. Bd7 {[%emt 0:00:47]} b4 {[%emt 0:00:11]} 36. Ba4 {[%emt 0:00:09]} Ke7 {[%emt 0:00:11]} 37. Kf1 {[%emt 0:00:46]} Kd6 {[%emt 0:00:07]} 38. Ke1 {[%emt 0:00:37]} Kc5 {[%emt 0:00:07]} 39. Kd2 {[%emt 0:00:28]} Nc3 {[%emt 0:05:12]} 40. Bb3 {[%emt 0:00:19]} Ne4+ {[%emt 0:00:53]} 41. Ke2 {[%emt 0:00:09]} Nd6 {[%emt 0:00:36]} 42. Kd3 {[%emt 0:00:49]} e5 {[%emt 0:00:30]} 43. e4 {[%emt 0:00:40]} f6 {[%emt 0:00:08]} 44. g4 {[%emt 0:00:49]} Nb5 {[%emt 0:00:26]} 45. h4 {[%emt 0:00:31]} Nd4 {[%emt 0:00:14]} 46. Bd1 {[%emt 0:00:30]} b3 {[%emt 0:01:00]} 47. Kc3 {[%emt 0:00:14]} b2 {[%emt 0:02:55]} 48. Kxb2 {[%emt 0:00:23]} Kc4 {[%emt 0:00:10]} 49. f3 {[%emt 0:00:52]} Kd3 {[%emt 0:00:22]} 50. h5 {[%emt 0:00:37]} Ke3 {[%emt 0:00:06]} 51. Kc3 {[%emt 0:00:30]} Nxf3 {[%emt 0:00:27]} 52. Bc2 {[%emt 0:00:27]} Ng5 {[%emt 0:00:41]} 53. Kc4 {[%emt 0:00:23]} Nxe4 {[%emt 0:00:09]} 54. Kd5 {[%emt 0:00:09]} Nf2 {[%emt 0:00:36]} 55. Ke6 {[%emt 0:00:17]} Nxg4 {[%emt 0:00:15]} 56. Kf7 {[%emt 0:00:08]} Kf4 {[%emt 0:00:41]} 57. Kxg7 {[%emt 0:00:18]} e4 {[%emt 0:00:13]} 58. Kg6 {[%emt 0:01:03]} e3 {[%emt 0:00:56]} 59. Bd1 {[%emt 0:00:11]} f5 {[%emt 0:03:56]} 60. Be2 {[%emt 0:00:04]} Ke5 {[%emt 0:00:48]} 61. Kg7 {[%emt 0:01:27]} Nf6 {[%emt 0:01:02]} 62. Kxh6 {[%emt 0:00:31]} Nxh5 {[%emt 0:00:07]} 63. Kxh5 {[%emt 0:00:29]} Kf4 {[%emt 0:00:10]} 64. Kh4 {[%emt 0:00:15]} Ke4 {[%emt 0:00:35]} 65. Kg3 {[%emt 0:00:21]} f4+ {[%emt 0:00:59]} 66. Kg2 {[%emt 0:00:08]} 1/2-1/2

[Event "Amsterdam Chess Open 2024"]
[Site "Amsterdam"]
[Date "2024.11.02"]
[Round "4.24"]
[White "Denz, Markus"]
[Black "Alexandrov, Matvey"]
[Result "1/2-1/2"]
[ECO "A83"]
[WhiteElo "1729"]
[BlackElo "1835"]
[Annotator "NA RC"]
[PlyCount "56"]
[EventDate "2024.10.31"]
[EventType "swiss"]
[EventCountry "NED"]
[SourceTitle "playchess.com"]
[Source "ChessBase"]
[SourceQuality "1"]
[TimeControl "5400+30"]

1. d4 {[%emt 0:00:02]} f5 {[%emt 0:00:14]} 2. Nc3 {[%emt 0:00:18]} Nf6 {[%emt 0:00:08]} 3. Bg5 {[%emt 0:00:10]} e6 {[%emt 0:00:07]} 4. e4 {[%emt 0:00:14]} fxe4 {[%emt 0:00:59]} 5. Nxe4 {[%emt 0:00:11]} Be7 {[%emt 0:00:31]} 6. Bxf6 {[%emt 0:00:11]} Bxf6 {[%emt 0:00:14]} 7. Nf3 {[%emt 0:00:19]} O-O {[%emt 0:00:37]} 8. Bd3 {[%emt 0:00:16]} Nc6 {[%emt 0:04:33]} 9. c3 {[%emt 0:00:32]} b6 {[%emt 0:00:18]} 10. Qe2 {[%emt 0:02:38]} Bb7 {[%emt 0:00:29]} 11. O-O-O {[%emt 0:01:50]} Ne7 {[%emt 0:03:28]} 12. Nxf6+ {[%emt 0:08:13]} Rxf6 {[%emt 0:01:11]} 13. Ng5 {[%emt 0:03:51]} Rh6 {[%emt 0:02:09]} 14. Be4 {[%emt 0:05:30]} Bxe4 {[%emt 0:11:19]} 15. Qxe4 {[%emt 0:01:20]} Nd5 {[%emt 0:01:26]} 16. f4 {[%emt 0:03:48]} Qf6 {[%emt 0:05:18]} 17. g3 {[%emt 0:01:48]} Rf8 {[%emt 0:01:10]} 18. Qe5 {[%emt 0:06:16]} Qf5 {[%emt 0:09:22]} 19. a3 {[%emt 0:04:17]} b5 {[%emt 0:01:15]} 20. Rd2 {[%emt 0:02:07]} Rhf6 {[%emt 0:01:13]} 21. Ne4 {[%emt 0:01:56]} R6f7 {[%emt 0:00:53]} 22. Re1 {[%emt 0:01:44]} h6 {[%emt 0:07:19]} 23. Qxf5 {[%emt 0:01:48]} Rxf5 {[%emt 0:00:43]} 24. Nc5 {[%emt 0:02:06]} R5f7 {[%emt 0:01:49]} 25. Rde2 {[%emt 0:00:34]} Rb8 {[%emt 0:05:32]} 26. Nd3 {[%emt 0:02:12]} Kh7 {[%emt 0:02:26]} 27. Ne5 {[%emt 0:02:00]} Re7 {[%emt 0:00:13]} 28. Nd3 {[%emt 0:00:24]} Rf8 {[%emt 0:00:36]} 1/2-1/2

[Event "Amsterdam Chess Open 2024"]
[Site "Amsterdam"]
[Date "2024.11.02"]
[Round "4.25"]
[White "Naranjo Contrera, Nestor"]
[Black "Thomas Huften"]
[Result "0-1"]
[ECO "E61"]
[WhiteElo "1665"]
[BlackElo "1781"]
[Annotator "NA RC"]
[PlyCount "138"]
[EventDate "2024.10.31"]
[EventType "swiss"]
[EventCountry "NED"]
[SourceTitle "playchess.com"]
[Source "ChessBase"]
[SourceQuality "1"]
[TimeControl "5400+30"]

1. d4 {[%emt 0:00:05]} Nf6 {[%emt 0:00:07]} 2. c4 {[%emt 0:00:39]} g6 {[%emt 0:00:13]} 3. Nc3 {[%emt 0:00:38]} Bg7 {[%emt 0:00:05]} 4. Nf3 {[%emt 0:03:22]} d6 {[%emt 0:00:24]} 5. e3 {[%emt 0:05:31]} O-O {[%emt 0:00:44]} 6. Bd3 {[%emt 0:00:44]} a5 {[%emt 0:03:19]} 7. h3 {[%emt 0:05:35]} Na6 {[%emt 0:03:57]} 8. a3 {[%emt 0:02:08]} c5 {[%emt 0:06:09]} 9. O-O {[%emt 0:03:27]} Bd7 {[%emt 0:02:47]} 10. Qc2 {[%emt 0:03:15]} Bc6 {[%emt 0:13:56]} 11. d5 {[%emt 0:06:58]} Bd7 {[%emt 0:00:42]} 12. b3 {[%emt 0:04:55]} e6 {[%emt 0:01:06]} 13. dxe6 {[%emt 0:04:25]} fxe6 {[%emt 0:01:37]} 14. Bb2 {[%emt 0:00:29]} Bc6 {[%emt 0:03:42]} 15. Be2 {[%emt 0:03:17]} Nc7 {[%emt 0:02:22]} 16. Rad1 {[%emt 0:03:19]} Qe7 {[%emt 0:01:23]} 17. Rd2 {[%emt 0:01:16]} Rad8 {[%emt 0:03:37]} 18. Rfd1 {[%emt 0:06:03]} Rd7 {[%emt 0:10:31]} 19. Ne1 {[%emt 0:03:55]} Rfd8 {[%emt 0:03:53]} 20. Bf3 {[%emt 0:01:16]} d5 {[%emt 0:06:45]} 21. cxd5 {[%emt 0:01:24]} exd5 {[%emt 0:03:56]} 22. Ne2 {[%emt 0:02:17]} Ne6 {[%emt 0:04:38]} 23. Ng3 {[%emt 0:01:35]} Ng5 {[%emt 0:02:42]} 24. Be2 {[%emt 0:01:31]} Nge4 {[%emt 0:02:11]} 25. Nxe4 {[%emt 0:01:11]} Nxe4 {[%emt 0:01:02]} 26. Bxg7 {[%emt 0:02:02]} Nxd2 {[%emt 0:03:50]} 27. Rxd2 {[%emt 0:00:20]} Kxg7 {[%emt 0:01:08]} 28. Bg4 {[%emt 0:00:45]} Rc7 {[%emt 0:02:04]} 29. Qc3+ {[%emt 0:00:10]} d4 {[%emt 0:01:59]} 30. Qxa5 {[%emt 0:01:07]} dxe3 {[%emt 0:01:19]} 31. Qc3+ {[%emt 0:02:30]} Kh6 {[%emt 0:02:30]} 32. Rxd8 {[%emt 0:00:46]} exf2+ {[%emt 0:00:24]} 33. Kxf2 {[%emt 0:00:24]} Qxd8 {[%emt 0:00:46]} 34. Qe3+ {[%emt 0:00:58]} Qg5 {[%emt 0:03:03]} 35. Qc3 {[%emt 0:01:05]} Qf4+ {[%emt 0:01:19]} 36. Bf3 {[%emt 0:00:20]} Qd4+ {[%emt 0:00:49]} 37. Qxd4 {[%emt 0:00:36]} cxd4 {[%emt 0:00:06]} 38. Be2 {[%emt 0:00:43]} Kg5 {[%emt 0:01:39]} 39. Bf3 {[%emt 0:00:55]} Rd7 {[%emt 0:01:21]} 40. Be2 {[%emt 0:00:52]} Be4 {[%emt 0:01:34]} 41. Nd3 {[%emt 0:01:27]} Bxd3 {[%emt 0:00:38]} 42. Bxd3 {[%emt 0:00:11]} Kf4 {[%emt 0:00:16]} 43. g3+ {[%emt 0:00:19]} Ke5 {[%emt 0:00:11]} 44. Ke2 {[%emt 0:02:56]} h6 {[%emt 0:00:28]} 45. a4 {[%emt 0:00:57]} g5 {[%emt 0:00:32]} 46. Kd2 {[%emt 0:00:46]} Kd5 {[%emt 0:00:55]} 47. b4 {[%emt 0:00:45]} Rc7 {[%emt 0:02:16]} 48. a5 {[%emt 0:00:46]} Rc3 {[%emt 0:01:33]} 49. b5 {[%emt 0:02:27]} Ra3 {[%emt 0:00:56]} 50. a6 {[%emt 0:00:23]} bxa6 {[%emt 0:00:05]} 51. bxa6 {[%emt 0:00:11]} Ke5 {[%emt 0:00:31]} 52. Ke2 {[%emt 0:01:43]} h5 {[%emt 0:00:34]} 53. Kd2 {[%emt 0:01:03]} h4 {[%emt 0:00:34]} 54. gxh4 {[%emt 0:00:49]} gxh4 {[%emt 0:00:20]} 55. Ke2 {[%emt 0:00:17]} Kf4 {[%emt 0:00:06]} 56. Kd2 {[%emt 0:00:39]} Kg3 {[%emt 0:00:14]} 57. Bf5 {[%emt 0:00:24]} Rxa6 {[%emt 0:00:14]} 58. Kd3 {[%emt 0:00:18]} Rd6 {[%emt 0:01:50]} 59. Bc8 {[%emt 0:00:18]} Kf4 {[%emt 0:00:22]} 60. Bg4 {[%emt 0:00:24]} Ke5 {[%emt 0:00:23]} 61. Bc8 {[%emt 0:00:18]} Rg6 {[%emt 0:00:36]} 62. Bd7 {[%emt 0:00:50]} Rg3+ {[%emt 0:00:17]} 63. Kd2 {[%emt 0:00:09]} Kf4 {[%emt 0:00:58]} 64. Be6 {[%emt 0:00:58]} Kf3 {[%emt 0:00:34]} 65. Kd3 {[%emt 0:00:39]} Kg2+ {[%emt 0:00:23]} 66. Kxd4 {[%emt 0:00:35]} Rxh3 {[%emt 0:00:12]} 67. Ke4 {[%emt 0:04:02]} Ra3 {[%emt 0:00:49]} 68. Bd5 {[%emt 0:00:54]} Kg3 {[%emt 0:00:32]} 69. Kf5 {[%emt 0:00:28]} h3 {[%emt 0:01:37]} 0-1

[Event "Amsterdam Chess Open 2024"]
[Site "Amsterdam"]
[Date "2024.11.02"]
[Round "4.26"]
[White "Tobias Pilz"]
[Black "Sam Ritchie"]
[Result "0-1"]
[ECO "A11"]
[WhiteElo "1700"]
[BlackElo "1600"]
[Annotator "NA RC"]
[PlyCount "66"]
[EventDate "2024.10.31"]
[EventType "swiss"]
[EventCountry "NED"]
[SourceTitle "playchess.com"]
[Source "ChessBase"]
[SourceQuality "1"]
[TimeControl "5400+30"]

1. e3 {[%emt 0:00:11]} d5 {[%emt 0:02:04]} 2. Nf3 {[%emt 0:00:14]} Nf6 {[%emt 0:01:18]} 3. c4 {[%emt 0:00:22]} e6 {[%emt 0:10:30]} 4. Nc3 {[%emt 0:00:24]} c6 {[%emt 0:02:14]} 5. b3 {[%emt 0:01:00]} Bc5 {[%emt 0:05:06]} 6. Bb2 {[%emt 0:00:57]} Nbd7 {[%emt 0:02:47]} 7. d4 {[%emt 0:01:03]} Bb6 {[%emt 0:03:17]} 8. Qc2 {[%emt 0:00:43]} c5 {[%emt 0:05:22]} 9. Na4 {[%emt 0:03:53]} Ba5+ {[%emt 0:02:23]} 10. Nd2 {[%emt 0:00:50]} Ne4 {[%emt 0:00:58]} 11. Nc3 {[%emt 0:02:27]} Bxc3 {[%emt 0:01:25]} 12. Bxc3 {[%emt 0:00:12]} Nxc3 {[%emt 0:00:18]} 13. Qxc3 {[%emt 0:00:02]} Qf6 {[%emt 0:01:50]} 14. cxd5 {[%emt 0:02:02]} exd5 {[%emt 0:01:32]} 15. Bb5 {[%emt 0:00:40]} b6 {[%emt 0:01:10]} 16. Nf3 {[%emt 0:01:40]} O-O {[%emt 0:06:22]} 17. Rc1 {[%emt 0:02:36]} cxd4 {[%emt 0:10:09]} 18. exd4 {[%emt 0:03:24]} Qe7+ {[%emt 0:06:06]} 19. Kd2 {[%emt 0:02:17]} Nf6 {[%emt 0:01:21]} 20. Bd3 {[%emt 0:01:56]} Bg4 {[%emt 0:05:46]} 21. Ne5 {[%emt 0:03:11]} Rac8 {[%emt 0:02:01]} 22. Nc6 {[%emt 0:07:09]} Qd6 {[%emt 0:01:42]} 23. f3 {[%emt 0:07:21]} Bd7 {[%emt 0:06:40]} 24. Bb5 {[%emt 0:08:49]} Rxc6 {[%emt 0:01:07]} 25. Bxc6 {[%emt 0:00:51]} Rc8 {[%emt 0:00:15]} 26. Qe3 {[%emt 0:07:27]} Bxc6 {[%emt 0:03:00]} 27. Rc2 {[%emt 0:03:19]} Re8 {[%emt 0:01:42]} 28. Qc3 {[%emt 0:01:47]} Qf4+ {[%emt 0:01:59]} 29. Kd1 {[%emt 0:00:19]} Bd7 {[%emt 0:07:41]} 30. g3 {[%emt 0:02:37]} Qd6 {[%emt 0:04:01]} 31. Kd2 {[%emt 0:03:19]} Qe7 {[%emt 0:01:29]} 32. Qd3 {[%emt 0:00:19]} g6 {[%emt 0:00:29]} 33. Rhc1 {[%emt 0:00:51]} Bf5 {[%emt 0:00:18]} 0-1

[Event "Amsterdam Chess Open 2024"]
[Site "Amsterdam"]
[Date "2024.11.02"]
[Round "4.28"]
[White "Tide Benevento"]
[Black "Sonmez, Ozkal"]
[Result "0-1"]
[ECO "B14"]
[WhiteElo "1200"]
[BlackElo "1637"]
[Annotator "NA RC"]
[PlyCount "58"]
[EventDate "2024.10.31"]
[EventType "swiss"]
[EventCountry "NED"]
[SourceTitle "playchess.com"]
[Source "ChessBase"]
[SourceQuality "1"]
[TimeControl "5400+30"]

1. d4 {[%emt 0:00:04]} Nf6 {[%emt 0:00:27]} 2. c4 {[%emt 0:00:18]} e6 {[%emt 0:00:07]} 3. Nc3 {[%emt 0:00:16]} Bb4 {[%emt 0:00:12]} 4. e3 {[%emt 0:00:57]} O-O {[%emt 0:00:25]} 5. Bd2 {[%emt 0:00:19]} c5 {[%emt 0:01:32]} 6. Nf3 {[%emt 0:02:14]} cxd4 {[%emt 0:06:39]} 7. exd4 {[%emt 0:01:05]} d5 {[%emt 0:00:24]} 8. c5 {[%emt 0:02:07]} b6 {[%emt 0:03:07]} 9. a3 {[%emt 0:01:16]} Bxc3 {[%emt 0:00:07]} 10. Bxc3 {[%emt 0:00:16]} Ne4 {[%emt 0:08:27]} 11. cxb6 {[%emt 0:05:06]} Qxb6 {[%emt 0:02:06]} 12. Bd3 {[%emt 0:00:46]} Nd7 {[%emt 0:05:32]} 13. O-O {[%emt 0:02:35]} Ba6 {[%emt 0:02:39]} 14. Re1 {[%emt 0:02:47]} Bxd3 {[%emt 0:03:44]} 15. Qxd3 {[%emt 0:00:26]} e5 {[%emt 0:05:28]} 16. Re3 {[%emt 0:05:03]} Nxc3 {[%emt 0:01:32]} 17. Qxc3 {[%emt 0:01:16]} Rfc8 {[%emt 0:03:23]} 18. Qd2 {[%emt 0:00:51]} e4 {[%emt 0:00:33]} 19. Nh4 {[%emt 0:03:59]} g6 {[%emt 0:02:00]} 20. Rh3 {[%emt 0:00:42]} Rc4 {[%emt 0:05:15]} 21. Rd1 {[%emt 0:05:11]} Rac8 {[%emt 0:04:09]} 22. b3 {[%emt 0:03:55]} Rc2 {[%emt 0:01:31]} 23. Qg5 {[%emt 0:00:29]} Qxd4 {[%emt 0:01:13]} 24. Rf1 {[%emt 0:01:46]} Qd2 {[%emt 0:06:38]} 25. Qg4 {[%emt 0:03:09]} Rc1 {[%emt 0:02:43]} 26. g3 {[%emt 0:02:39]} Ne5 {[%emt 0:00:25]} 27. Qf4 {[%emt 0:02:45]} Rxf1+ {[%emt 0:01:50]} 28. Kxf1 {[%emt 0:01:00]} Rc1+ {[%emt 0:00:01]} 29. Kg2 {[%emt 0:00:18]} Qd1 {[%emt 0:00:28]} 0-1

[Event "Amsterdam Chess Open 2024"]
[Site "Amsterdam"]
[Date "2024.11.02"]
[Round "4.29"]
[White "Boustred, Noel J"]
[Black "Sourbh Bhadane"]
[Result "1/2-1/2"]
[ECO "A45"]
[WhiteElo "1614"]
[BlackElo "1200"]
[Annotator "NA RC"]
[PlyCount "33"]
[EventDate "2024.10.31"]
[EventType "swiss"]
[EventCountry "NED"]
[SourceTitle "playchess.com"]
[Source "ChessBase"]
[SourceQuality "1"]
[TimeControl "5400+30"]

1. d4 {[%emt 0:00:51]} Nf6 {[%emt 0:00:08]} 2. e3 {[%emt 0:00:08]} e6 {[%emt 0:00:14]} 3. Bd3 {[%emt 0:00:55]} b6 {[%emt 0:00:35]} 4. Nh3 {[%emt 0:00:35]} Bb7 {[%emt 0:00:54]} 5. O-O {[%emt 0:01:51]} c5 {[%emt 0:01:58]} 6. c3 {[%emt 0:00:30]} Qc7 {[%emt 0:02:43]} 7. Nd2 {[%emt 0:06:35]} d5 {[%emt 0:08:52]} 8. f4 {[%emt 0:01:51]} Nbd7 {[%emt 0:02:03]} 9. Nf3 {[%emt 0:01:11]} Be7 {[%emt 0:02:12]} 10. Ne5 {[%emt 0:01:46]} h6 {[%emt 0:03:01]} 11. Bd2 {[%emt 0:02:31]} a6 {[%emt 0:02:21]} 12. Be1 {[%emt 0:04:21]} O-O {[%emt 0:07:46]} 13. g4 {[%emt 0:02:52]} Nxe5 {[%emt 0:08:16]} 14. fxe5 {[%emt 0:00:34]} Ne4 {[%emt 0:00:23]} 15. Bxe4 {[%emt 0:01:26]} dxe4 {[%emt 0:00:05]} 16. Bg3 {[%emt 0:02:09]} Qd8 {[%emt 0:02:24]} 17. Qe1 {[%emt 0:02:28]} 1/2-1/2

[Event "Amsterdam Chess Open 2024"]
[Site "Amsterdam"]
[Date "2024.11.02"]
[Round "4.30"]
[White "Witte, Phoebe"]
[Black "Imran Yakubov"]
[Result "1-0"]
[ECO "C01"]
[WhiteElo "1619"]
[BlackElo "1500"]
[Annotator "NA RC"]
[PlyCount "49"]
[EventDate "2024.10.31"]
[EventType "swiss"]
[EventCountry "NED"]
[SourceTitle "playchess.com"]
[Source "ChessBase"]
[SourceQuality "1"]
[TimeControl "5400+30"]

1. e4 {[%emt 0:00:04]} e6 {[%emt 0:00:03]} 2. d4 {[%emt 0:00:14]} d5 {[%emt 0:00:02]} 3. exd5 {[%emt 0:00:17]} exd5 {[%emt 0:00:04]} 4. Bd3 {[%emt 0:00:11]} Nf6 {[%emt 0:00:03]} 5. Nf3 {[%emt 0:00:15]} Be7 {[%emt 0:00:07]} 6. O-O {[%emt 0:00:09]} O-O {[%emt 0:00:02]} 7. Re1 {[%emt 0:00:21]} c6 {[%emt 0:00:06]} 8. Bf4 {[%emt 0:00:28]} Nbd7 {[%emt 0:00:10]} 9. Nbd2 {[%emt 0:00:19]} Re8 {[%emt 0:00:07]} 10. c3 {[%emt 0:00:46]} Nf8 {[%emt 0:00:06]} 11. Ne5 {[%emt 0:00:48]} Ng6 {[%emt 0:01:15]} 12. Nxg6 {[%emt 0:01:06]} hxg6 {[%emt 0:00:11]} 13. h3 {[%emt 0:01:07]} Bd7 {[%emt 0:00:12]} 14. Nf3 {[%emt 0:01:17]} Bf8 {[%emt 0:05:23]} 15. Ne5 {[%emt 0:01:54]} Be6 {[%emt 0:00:19]} 16. Qc2 {[%emt 0:02:53]} Rc8 {[%emt 0:14:39]} 17. Qd2 {[%emt 0:03:41]} a6 {[%emt 0:27:43]} 18. Re2 {[%emt 0:02:00]} Bd7 {[%emt 0:08:41]} 19. Rae1 {[%emt 0:02:06]} b5 {[%emt 0:04:45]} 20. Bg5 {[%emt 0:05:23]} a5 {[%emt 0:04:46]} 21. Qf4 {[%emt 0:04:11]} Bd6 {[%emt 0:17:17]} 22. Qf3 {[%emt 0:07:14]} Be7 {[%emt 0:10:59]} 23. Nxg6 {[%emt 0:05:40]} fxg6 {[%emt 0:00:15]} 24. Bxg6 {[%emt 0:00:06]} Ne4 {[%emt 0:04:37]} 25. Bf7+ {[%emt 0:10:54]} 1-0